bitfinex/quotes_SOLUSD_20240702
["timestamp","ask_amount","ask_price","bid_price","bid_amount"]
[1719916923448,12.17,148.89,148.84,152.59]
[1719916923773,0.8405986,148.93,148.85,52.59]
[1719916924072,12.17,148.9,148.85,52.59]
[1719916924270,12.17,148.91,148.85,40.42]
[1719916924684,12.17,148.91,148.87,12.17]
[1719916925057,12.17,148.91,148.85,40.42]
[1719916925380,12.17,148.91,148.86,12.17]
[1719916925953,12.17,148.9,148.85,52.59]
[1719916926371,12.17,148.9,148.83,40.42]
[1719916926569,12.17,148.9,148.85,12.17]
[1719916927049,12.17,148.9,148.83,40.42]
[1719916927366,12.17,148.89,148.84,32.17]
[1719916928067,7.5551986,148.93,148.85,12.17]
[1719916928383,12.17,148.9,148.86,1.34335779]
[1719916929189,12.17,148.9,148.85,12.17]
[1719916929860,12.17,148.9,148.86,1.34333026]
[1719916930757,12.17,148.9,148.85,52.59]
[1719916931889,12.17,148.9,148.85,40.42]
[1719916932362,12.17,148.9,148.85,52.59]
[1719916933189,12.17,148.9,148.85,12.17]
[1719916933361,12.17,148.87,148.84,20.0]
[1719916934071,12.17,148.87,148.81,15.6058]
[1719916934283,12.17,148.86,148.82,20.0]
[1719916934854,12.17,148.84,148.79,40.42]
[1719916935059,12.17,148.84,148.79,52.59]
[1719916935255,12.17,148.84,148.79,40.42]
[1719916935562,12.17,148.85,148.8,12.17]
[1719916936697,12.17,148.84,148.79,40.42]
[1719916936980,12.17,148.84,148.8,20.0]
[1719916937870,12.17,148.84,148.78,21.7468]
[1719916937871,12.17,148.84,148.79,32.17]
[1719916938064,7.02372041,148.87,148.79,32.17]
[1719916938271,12.17,148.85,148.8,12.17]
[1719916938681,7.02372041,148.87,148.8,12.17]
[1719916938884,12.17,148.85,148.8,12.17]
[1719916939559,12.17,148.85,148.79,60.42]
[1719916939757,6.5742,148.86,148.76,40.42]
[1719916940085,12.17,148.81,148.77,20.0]
[1719916940295,12.17,148.82,148.77,32.17]
[1719916940585,12.17,148.82,148.77,20.0]
[1719916940777,12.17,148.82,148.77,32.17]
[1719916941272,12.17,148.82,148.77,20.0]
[1719916941471,12.17,148.81,148.77,32.17]
[1719916942382,12.17,148.81,148.77,20.0]
[1719916942587,12.17,148.81,148.76,12.17]
[1719916943962,12.17,148.81,148.75,40.42]
[1719916944185,12.17,148.81,148.76,32.17]
[1719916944385,12.17,148.81,148.76,20.0]
[1719916945097,12.17,148.81,148.76,32.17]
[1719916945690,12.17,148.81,148.76,33.51422511]
[1719916946790,12.17,148.81,148.76,32.17]
[1719916947091,12.17,148.8,148.76,20.0]
[1719916947462,12.17,148.8,148.76,21.34428968]
[1719916947665,13.74136568,148.83,148.76,20.0]
[1719916948797,12.17,148.77,148.72,12.17]
[1719916951893,21.9846,148.79,148.73,12.17]
[1719916952083,12.17,148.78,148.73,12.17]
[1719916953190,12.17,148.78,148.7,255.5915]
[1719916953380,12.17,148.77,148.73,12.17]
[1719916953789,12.17,148.78,148.73,12.17]
[1719916957503,7.02378858,148.8,148.74,13.51442187]
[1719916957685,12.17,148.8,148.75,12.17]
[1719916957886,21.3786,148.83,148.76,40.42]
[1719916958085,12.17,148.81,148.76,52.59]
[1719916958391,12.17,148.81,148.76,12.17]
[1719916958583,12.17,148.8,148.75,12.17]
[1719916958922,7.02330583,148.82,148.76,140.42]
[1719916959081,7.02330583,148.82,148.78,12.17]
[1719916959280,27.5407,148.83,148.79,1.34393961]
[1719916959599,27.5407,148.83,148.78,12.17]
[1719916959975,7.02284265,148.85,148.78,52.59]
[1719916960176,7.02284265,148.85,148.8,12.17]
[1719916960177,19.19284265,148.85,148.8,12.17]
[1719916960492,12.17,148.85,148.8,12.17]
[1719916961507,12.17,148.84,148.79,12.17]
[1719916962700,7.02219065,148.86,148.79,12.17]
[1719916962902,12.17,148.84,148.79,12.17]
[1719916963695,12.17,148.84,148.77,40.42]
[1719916963894,12.17,148.84,148.78,20.0]
[1719916964982,12.17,148.84,148.78,160.42]
[1719916969415,12.17,148.85,148.78,160.42]
[1719916969591,12.17,148.83,148.78,20.0]
[1719916969787,12.17,148.83,148.77,20.0]
[1719916969987,12.17,148.83,148.78,12.17]
[1719916970188,12.17,148.83,148.79,20.0]
[1719916970807,12.17,148.83,148.78,12.17]
[1719916971508,7.02331983,148.84,148.77,12.17]
[1719916971509,12.17,148.82,148.77,12.17]
[1719916971814,12.17,148.83,148.78,33.51403553]
[1719916972008,12.17,148.83,148.78,32.17]
[1719916972189,12.17,148.82,148.78,20.0]
[1719916972510,12.17,148.82,148.78,12.17]
[1719916975021,12.17,148.82,148.77,20.0]
[1719916975319,7.02331983,148.84,148.75,15.5195]
[1719916975320,12.17,148.8,148.76,32.17]
[1719916975616,12.17,148.8,148.76,20.0]
[1719916975793,12.17,148.8,148.75,32.17]
[1719916975985,12.17,148.8,148.75,12.17]
[1719916976214,12.17,148.79,148.74,12.17]
[1719916977007,12.17,148.79,148.75,1.34438046]
[1719916977507,12.17,148.8,148.76,12.17]
[1719916978392,22.1135,148.82,148.76,12.17]
[1719916978615,12.17,148.81,148.75,40.42]
[1719916978915,12.17,148.81,148.76,12.17]
[1719916979212,27.7866,148.82,148.77,12.17]
[1719916979509,15.6166,148.82,148.78,12.17]
[1719916979920,27.7866,148.82,148.77,12.17]
[1719916982099,27.7866,148.82,148.75,40.42]
[1719916982100,12.17,148.81,148.75,40.42]
[1719916982304,12.17,148.8,148.76,20.0]
[1719916983312,12.17,148.8,148.75,12.17]
[1719916983525,12.17,148.81,148.76,32.17]
[1719916984815,12.17,148.8,148.76,20.0]
[1719916985112,12.17,148.8,148.73,40.42]
[1719916985419,12.17,148.79,148.74,32.17]
[1719916986005,12.17,148.79,148.74,20.0]
[1719916986200,12.17,148.79,148.74,32.17]
[1719916987021,6.6389,148.81,148.74,20.0]
[1719916987311,12.17,148.79,148.74,32.17]
[1719916987522,6.6389,148.81,148.74,32.17]
[1719916987698,12.17,148.79,148.74,20.0]
[1719916987901,12.17,148.78,148.73,32.17]
[1719916988705,12.17,148.79,148.74,12.17]
[1719916991001,12.17,148.78,148.73,32.17]
[1719916992505,6.6389,148.81,148.73,32.17]
[1719916992708,12.17,148.78,148.73,32.17]
[1719916993018,7.02310621,148.8,148.74,12.17]
[1719916993323,12.17,148.78,148.73,32.17]
[1719916994406,12.17,148.79,148.74,12.17]
[1719916995713,7.02310621,148.8,148.74,12.17]
[1719916996026,12.17,148.79,148.74,12.17]
[1719916996327,7.02310621,148.8,148.74,12.17]
[1719916996529,12.17,148.79,148.74,12.17]
[1719916998726,7.02310621,148.8,148.74,12.17]
[1719916999030,12.17,148.79,148.74,12.17]
[1719916999329,7.02310621,148.8,148.74,12.17]
[1719916999526,12.17,148.79,148.74,12.17]
[1719917003924,12.17,148.78,148.73,32.17]
[1719917004831,12.17,148.78,148.73,33.5144804]
[1719917005137,12.17,148.78,148.74,1.34447662]
[1719917005327,7.02310621,148.8,148.74,13.51447662]
[1719917005508,12.17,148.79,148.74,13.51447662]
[1719917006232,12.17,148.79,148.74,12.17]
[1719917009325,7.02310621,148.8,148.73,32.17]
[1719917009644,12.17,148.78,148.73,32.17]
[1719917010241,7.02310621,148.8,148.74,12.17]
[1719917010446,19.19310621,148.8,148.75,12.17]
[1719917010640,7.02310621,148.8,148.75,12.17]
[1719917010952,12.17,148.79,148.74,13.51438152]
[1719917011246,7.02310621,148.8,148.76,12.17]
[1719917011448,12.9582,148.85,148.77,13.51416712]
[1719917011656,19.40046616,148.84,148.77,13.51416712]
[1719917011951,12.17,148.82,148.78,12.17]
[1719917012445,12.17,148.83,148.78,12.17]
[1719917013433,13.74048187,148.84,148.77,12.17]
[1719917013434,12.17,148.82,148.77,12.17]
[1719917013620,13.74048187,148.84,148.77,12.17]
[1719917013820,12.17,148.83,148.78,12.17]
[1719917014730,12.17,148.83,148.76,15.1405]
[1719917014948,12.17,148.83,148.78,12.17]
[1719917015449,12.17,148.83,148.77,20.0]
[1719917015450,12.17,148.82,148.77,32.17]
[1719917017044,12.17,148.81,148.76,12.17]
[1719917017356,12.17,148.8,148.75,12.17]
[1719917017539,12.17,148.8,148.76,21.34427104]
[1719917017932,7.02168187,148.84,148.77,13.51424213]
[1719917018251,12.17,148.82,148.77,12.17]
[1719917018460,12.17,148.82,148.76,20.0]
[1719917018461,12.17,148.83,148.78,12.17]
[1719917022663,12.17,148.83,148.77,1.34406982]
[1719917022837,12.17,148.83,148.78,12.17]
[1719917024242,12.17,148.82,148.77,12.17]
[1719917024443,12.17,148.83,148.78,12.17]
[1719917027257,7.02168187,148.84,148.8,12.17]
[1719917027464,13.0221,148.89,148.81,13.51380253]
[1719917027679,13.0221,148.89,148.78,140.42]
[1719917027680,19.39430648,148.88,148.82,12.17]
[1719917027834,12.17,148.87,148.82,12.17]
[1719917028746,7.01866951,148.88,148.82,12.17]
[1719917029064,12.17,148.87,148.82,12.17]
[1719917029267,19.18866951,148.88,148.83,12.17]
[1719917029934,12.17,148.87,148.82,12.17]
[1719917032038,7.01866951,148.88,148.85,12.17]
[1719917032262,12.17,148.9,148.85,12.17]
[1719917033164,7.0151451,148.91,148.86,1.34317073]
[1719917033353,12.17,148.9,148.85,12.17]
[1719917034273,7.0151451,148.91,148.85,12.17]
[1719917034567,12.17,148.88,148.83,12.17]
[1719917035471,12.17,148.89,148.84,12.17]
[1719917042269,7.0151451,148.91,148.82,27.8253]
[1719917042270,12.17,148.86,148.82,27.8253]
[1719917042467,12.17,148.86,148.82,15.6553]
[1719917042666,12.17,148.86,148.81,18.7094]
[1719917042865,12.17,148.86,148.79,40.42]
[1719917043061,12.17,148.85,148.8,12.17]
[1719917044166,12.17,148.85,148.78,16.1374]
[1719917044369,12.17,148.83,148.79,20.0]
[1719917044555,12.17,148.83,148.79,32.17]
[1719917045376,12.17,148.84,148.79,32.17]
[1719917045764,12.17,148.84,148.79,20.0]
[1719917045964,12.17,148.84,148.79,32.17]
[1719917046271,12.17,148.83,148.79,32.17]
[1719917046469,64.0701,148.89,148.8,12.17]
[1719917046685,12.17,148.85,148.8,12.17]
[1719917050958,12.17,148.86,148.81,12.17]
[1719917051162,7.01755544,148.9,148.81,1.34380877]
[1719917051461,12.17,148.88,148.83,12.17]
[1719917052386,12.17,148.89,148.84,13.51354548]
[1719917052682,7.01755544,148.9,148.84,12.17]
[1719917052980,12.17,148.89,148.84,12.17]
[1719917053477,7.01755544,148.9,148.84,12.17]
[1719917053691,12.17,148.89,148.84,12.17]
[1719917053857,12.17,148.88,148.84,12.17]
[1719917054052,12.17,148.89,148.84,12.17]
[1719917054257,7.01755544,148.9,148.84,12.17]
[1719917054457,12.17,148.89,148.84,12.17]
[1719917055462,7.01755544,148.9,148.84,12.17]
[1719917055971,19.18755544,148.9,148.85,12.17]
[1719917056289,12.17,148.89,148.84,12.17]
[1719917058173,12.17,148.88,148.83,15.0009]
[1719917058378,12.17,148.88,148.83,27.1709]
[1719917058582,7.01755544,148.9,148.82,6.1192]
[1719917058583,12.17,148.87,148.82,12.17]
[1719917058885,19.1885124,148.88,148.82,12.17]
[1719917059876,19.1885124,148.88,148.79,176.7681]
[1719917060079,12.17,148.87,148.82,12.17]
[1719917060483,7.0185124,148.88,148.82,12.17]
[1719917060668,12.17,148.87,148.82,12.17]
[1719917060867,19.1885124,148.88,148.83,12.17]
[1719917061468,19.1885124,148.88,148.79,176.7681]
[1719917061768,7.0185124,148.88,148.82,12.17]
[1719917061982,12.17,148.87,148.82,12.17]
[1719917068275,7.0185124,148.88,148.82,12.17]
[1719917068479,12.17,148.87,148.82,12.17]
[1719917071903,12.17,148.84,148.79,36.3581]
[1719917072079,12.17,148.84,148.79,48.5281]
[1719917072277,12.17,148.84,148.79,36.3581]
[1719917072474,12.17,148.8,148.75,16.2954]
[1719917072803,12.17,148.79,148.75,16.2954]
[1719917073298,12.17,148.78,148.71,56.4371]
[1719917073499,12.17,148.77,148.73,12.17]
[1719917074387,12.17,148.78,148.73,12.17]
[1719917074589,12.17,148.78,148.74,20.0]
[1719917076805,12.17,148.75,148.71,16.0271]
[1719917076983,12.17,148.75,148.72,20.0]
[1719917077982,6.7207,148.8,148.72,20.0]
[1719917078177,13.0197,148.81,148.72,20.0]
[1719917078494,12.17,148.76,148.72,20.0]
[1719917078794,12.17,148.77,148.72,32.17]
[1719917079004,12.17,148.76,148.72,20.0]
[1719917080091,20.0,148.8,148.72,20.0]
[1719917080092,12.17,148.75,148.72,20.0]
[1719917080297,26.7204,148.8,148.72,20.0]
[1719917080298,12.17,148.76,148.72,20.0]
[1719917081484,12.17,148.74,148.68,140.41]
[1719917081793,12.17,148.74,148.69,12.17]
[1719917082885,12.17,148.74,148.7,20.0]
[1719917083294,7.02112504,148.77,148.7,32.17]
[1719917083597,7.02112504,148.77,148.68,100.0]
[1719917083799,12.17,148.72,148.67,16.3098]
[1719917084004,12.17,148.72,148.68,20.0]
[1719917088801,12.17,148.72,148.68,32.17]
[1719917089395,23.27582504,148.77,148.68,20.0]
[1719917089396,48.68,148.75,148.68,20.0]
[1719917089607,12.17,148.71,148.68,20.0]
[1719917090376,12.17,148.72,148.68,20.0]
[1719917092889,12.17,148.69,148.62,15.3659]
[1719917093094,12.17,148.69,148.64,12.17]
[1719917093729,12.17,148.7,148.64,12.17]
[1719917094200,7.02419154,148.71,148.65,12.17]
[1719917094392,19.19419154,148.71,148.66,12.17]
[1719917094589,22.9768,148.77,148.68,12.17]
[1719917094793,12.17,148.73,148.68,12.17]
[1719917096003,12.17,148.71,148.63,40.41]
[1719917096213,12.17,148.71,148.66,12.17]
[1719917097404,12.17,148.71,148.63,40.41]
[1719917097614,12.17,148.71,148.66,12.17]
[1719917099008,12.17,148.7,148.65,12.17]
[1719917099496,12.17,148.68,148.62,15.3659]
[1719917099696,12.17,148.68,148.64,12.17]
[1719917099893,12.17,148.69,148.64,12.17]
[1719917100310,12.17,148.7,148.65,12.17]
[1719917102005,12.17,148.71,148.65,12.17]
[1719917102309,12.17,148.7,148.65,12.17]
[1719917103407,12.17,148.7,148.62,55.7759]
[1719917103600,12.17,148.68,148.63,32.17]
[1719917103910,48.68,148.75,148.66,12.17]
[1719917104091,20.0,148.74,148.66,12.17]
[1719917104285,12.17,148.72,148.63,160.41]
[1719917104492,12.17,148.72,148.67,12.17]
[1719917105208,12.17,148.71,148.66,12.17]
[1719917105412,12.17,148.7,148.65,12.17]
[1719917105616,12.17,148.7,148.63,20.0]
[1719917105805,12.17,148.7,148.65,12.17]
[1719917107202,27.01610335,148.74,148.67,12.17]
[1719917107413,12.17,148.72,148.67,12.17]
[1719917110115,20.0,148.74,148.67,12.17]
[1719917110306,12.17,148.72,148.67,12.17]
[1719917116117,22.47850769,148.76,148.68,1.31212694]
[1719917116308,12.17,148.75,148.7,12.17]
[1719917117917,12.17,148.75,148.71,1.34472306]
[1719917118299,19.18470769,148.76,148.71,12.17]
[1719917120306,19.18470769,148.76,148.72,1.34318236]
[1719917120621,19.18470769,148.76,148.71,12.17]
[1719917121530,12.17,148.76,148.71,12.17]
[1719917121906,18.8927,148.75,148.67,15.3152]
[1719917122110,12.17,148.74,148.69,12.17]
[1719917123219,12.17,148.74,148.67,55.7252]
[1719917123429,12.17,148.74,148.69,12.17]
[1719917128032,12.17,148.75,148.7,12.17]
[1719917132331,12.17,148.74,148.69,12.17]
[1719917133634,12.17,148.74,148.67,55.7252]
[1719917133831,12.17,148.74,148.68,12.17]
[1719917134206,6.7227,148.75,148.67,15.3152]
[1719917134207,12.17,148.73,148.67,15.3152]
[1719917134428,12.17,148.73,148.68,12.17]
[1719917135230,12.17,148.73,148.67,15.3152]
[1719917135231,16.5528,148.75,148.69,12.17]
[1719917135431,28.7228,148.75,148.69,12.17]
[1719917135632,28.7228,148.75,148.7,0.79185042]
[1719917135944,28.7228,148.75,148.7,1.34479601]
[1719917136838,7.02037273,148.76,148.7,1.34479601]
[1719917137048,7.02037273,148.76,148.71,12.17]
[1719917137242,12.17,148.76,148.71,12.17]
[1719917137915,12.17,148.76,148.72,1.34456657]
[1719917139345,12.17,148.76,148.71,12.17]
[1719917139546,15.6489,148.79,148.69,60.41]
[1719917139547,12.17,148.77,148.72,12.17]
[1719917139839,15.6489,148.79,148.74,12.17]
[1719917140222,27.8189,148.79,148.75,1.34303152]
[1719917140522,15.6489,148.79,148.75,13.51303152]
[1719917141148,15.6489,148.79,148.75,12.17]
[1719917143944,7.01909211,148.8,148.75,12.17]
[1719917144119,7.01909211,148.8,148.76,12.17]
[1719917144322,12.17,148.81,148.76,12.17]
[1719917144537,12.17,148.82,148.77,12.17]
[1719917144757,12.17,148.82,148.77,13.51413564]
[1719917144932,12.17,148.82,148.77,12.17]
[1719917145245,12.17,148.81,148.76,12.17]
[1719917146149,12.17,148.8,148.75,12.17]
[1719917147124,12.17,148.8,148.72,40.41]
[1719917147328,12.17,148.8,148.75,12.17]
[1719917148427,12.17,148.8,148.76,12.17]
[1719917148626,28.6741,148.83,148.77,1.34425081]
[1719917148842,21.9551,148.83,148.77,13.51425081]
[1719917149041,21.9551,148.83,148.73,140.41]
[1719917149042,21.9551,148.83,148.78,12.17]
[1719917149232,7.01692578,148.85,148.79,12.69025088]
[1719917149428,7.01692578,148.85,148.8,12.69021591]
[1719917149628,19.18692578,148.85,148.8,12.17]
[1719917151431,19.18692578,148.85,148.81,1.34383955]
[1719917153443,7.01692578,148.85,148.81,13.51383955]
[1719917153639,7.01692578,148.85,148.82,1.34374238]
[1719917154866,7.01692578,148.85,148.82,12.17]
[1719917157269,7.01692578,148.85,148.81,12.17]
[1719917158262,7.01692578,148.85,148.82,1.34371472]
[1719917159165,7.01692578,148.85,148.78,40.41]
[1719917159462,7.01692578,148.85,148.81,12.17]
[1719917161065,7.01692578,148.85,148.78,40.41]
[1719917161299,7.01692578,148.85,148.81,12.17]
[1719917161444,7.01692578,148.85,148.78,40.41]
[1719917161761,7.01692578,148.85,148.8,140.41]
[1719917161963,12.17,148.88,148.83,12.17]
[1719917163241,12.17,148.87,148.79,40.41]
[1719917163442,12.17,148.86,148.79,40.41]
[1719917163673,12.17,148.86,148.81,12.17]
[1719917164544,12.17,148.86,148.82,12.17]
[1719917165967,6.716,148.9,148.82,12.17]
[1719917166293,12.17,148.87,148.82,12.17]
[1719917166443,12.17,148.88,148.83,12.17]
[1719917169765,6.7159,148.9,148.83,12.17]
[1719917169965,12.17,148.88,148.83,12.17]
[1719917170779,6.7164,148.89,148.83,12.17]
[1719917171075,12.17,148.88,148.83,12.17]
[1719917171287,6.716,148.9,148.83,12.17]
[1719917171445,12.17,148.88,148.83,12.17]
[1719917172593,7.01913933,148.87,148.83,40.41]
[1719917172899,15.5018,148.91,148.86,12.17]
[1719917173084,27.6718,148.91,148.86,12.17]
[1719917175508,15.5018,148.91,148.86,12.17]
[1719917175998,27.6718,148.91,148.86,12.17]
[1719917179097,12.17,148.91,148.86,12.17]
[1719917184303,7.85789173,148.93,148.86,12.17]
[1719917184615,12.17,148.92,148.87,12.17]
[1719917185099,7.85789173,148.93,148.87,12.17]
[1719917185606,12.17,148.92,148.88,1.34251248]
[1719917186387,7.85789173,148.93,148.88,1.34251248]
[1719917186586,12.17,148.92,148.88,1.34251248]
[1719917187293,7.85789173,148.93,148.88,1.34251248]
[1719917187493,12.17,148.92,148.88,1.34251248]
[1719917187799,7.85789173,148.93,148.89,12.17]
[1719917187998,0.8405986,148.93,148.9,1.34233215]
[1719917189007,0.8405986,148.93,148.9,13.51233215]
[1719917189208,0.8405986,148.93,148.91,1.34224214]
[1719917191385,0.8405986,148.93,148.86,140.41]
[1719917191583,0.8405986,148.93,148.89,12.17]
[1719917192284,0.8405986,148.93,148.88,100.0]
[1719917192483,0.8405986,148.93,148.91,12.17]
[1719917192885,0.8405986,148.93,148.9,12.17]
[1719917193109,0.8405986,148.93,148.91,1.34282597]
[1719917193309,0.8405986,148.93,148.9,12.17]
[1719917194893,0.8405986,148.93,148.85,15.6496]
[1719917195111,12.17,148.9,148.85,15.6496]
[1719917195313,12.17,148.89,148.81,15.4033]
[1719917195491,12.17,148.88,148.83,12.17]
[1719917195807,12.17,148.88,148.81,15.4033]
[1719917196007,12.17,148.88,148.81,55.8133]
[1719917196189,12.17,148.87,148.82,12.17]
[1719917197716,6.716,148.9,148.82,12.17]
[1719917198000,12.17,148.87,148.82,12.17]
[1719917199197,12.17,148.86,148.81,27.5733]
[1719917199992,12.17,148.86,148.78,140.41]
[1719917200225,12.17,148.86,148.79,60.41]
[1719917200404,12.17,148.86,148.81,12.17]
[1719917202926,12.17,148.86,148.79,60.41]
[1719917203107,12.17,148.86,148.81,12.17]
[1719917206619,12.17,148.87,148.82,12.17]
[1719917206830,12.17,148.88,148.83,12.17]
[1719917207824,21.7655,148.89,148.83,12.17]
[1719917208017,12.17,148.87,148.82,12.17]
[1719917209525,21.7655,148.89,148.82,12.17]
[1719917209725,12.17,148.87,148.82,12.17]
[1719917213414,12.17,148.85,148.79,20.0]
[1719917213606,12.17,148.85,148.8,12.17]
[1719917214329,77.162,148.89,148.8,12.17]
[1719917214518,12.17,148.86,148.81,12.17]
[1719917215027,12.17,148.86,148.82,12.17]
[1719917216632,12.17,148.86,148.81,12.17]
[1719917219029,12.17,148.86,148.79,40.41]
[1719917219332,12.17,148.86,148.8,32.17]
[1719917221034,12.17,148.86,148.81,12.17]
[1719917222614,12.17,148.87,148.82,12.17]
[1719917224742,12.17,148.87,148.83,1.34361956]
[1719917225145,28.7806521,148.89,148.82,12.17]
[1719917225329,12.17,148.87,148.82,12.17]
[1719917226759,28.7806521,148.89,148.83,12.17]
[1719917227048,12.17,148.88,148.83,12.17]
[1719917227620,7.01706234,148.92,148.81,240.41]
[1719917227837,7.01706234,148.92,148.85,12.17]
[1719917227838,12.17,148.9,148.85,12.17]
[1719917228024,12.17,148.9,148.86,1.34323166]
[1719917228227,12.17,148.88,148.81,140.41]
[1719917228427,23.3336986,148.93,148.85,12.17]
[1719917228624,23.3336986,148.93,148.84,12.17]
[1719917228625,12.17,148.89,148.84,12.17]
[1719917229237,23.3336986,148.93,148.85,12.17]
[1719917229443,12.17,148.89,148.85,12.17]
[1719917230021,12.17,148.9,148.85,12.17]
[1719917230333,12.17,148.91,148.86,12.17]
[1719917232322,12.17,148.92,148.87,12.17]
[1719917232526,23.3336986,148.93,148.88,1.34308296]
[1719917233045,23.3336986,148.93,148.88,13.51308296]
[1719917233223,12.17,148.92,148.88,1.34308296]
[1719917233626,13.0105986,148.93,148.88,13.51308296]
[1719917233931,13.0105986,148.93,148.89,1.34300976]
[1719917234828,13.0105986,148.93,148.9,1.343028]
[1719917234829,0.8405986,148.93,148.9,1.343028]
[1719917236329,0.8405986,148.93,148.89,12.17]
[1719917237227,0.8405986,148.93,148.91,12.17]
[1719917237432,0.8405986,148.93,148.92,1.34275189]
[1719917238342,0.8405986,148.93,148.91,12.17]
[1719917238647,0.8405986,148.93,148.9,12.17]
[1719917238855,0.8405986,148.93,148.91,20.0]
[1719917239342,0.8405986,148.93,148.9,20.0]
[1719917240362,0.8405986,148.93,148.89,32.17]
[1719917241365,0.8405986,148.93,148.91,12.17]
[1719917241535,0.8405986,148.93,148.89,160.41]
[1719917241536,0.8405986,148.93,148.89,60.41]
[1719917241734,0.8405986,148.93,148.91,12.17]
[1719917242344,0.8405986,148.93,148.9,12.17]
[1719917242541,0.8405986,148.93,148.91,20.0]
[1719917244054,0.8405986,148.93,148.9,20.0]
[1719917245459,0.8405986,148.93,148.9,32.17]
[1719917246072,0.8405986,148.93,148.91,13.51286331]
[1719917246364,0.8405986,148.93,148.92,20.0]
[1719917247053,0.8405986,148.93,148.92,32.17]
[1719917248364,0.8405986,148.93,148.92,33.51250656]
[1719917248858,0.8405986,148.93,148.92,20.0]
[1719917251387,0.8405986,148.93,148.89,12.17]
[1719917251664,0.8405986,148.93,148.9,20.0]
[1719917251847,0.8405986,148.93,148.89,12.17]
[1719917252160,0.8405986,148.93,148.9,20.0]
[1719917252544,0.8405986,148.93,148.9,32.17]
[1719917253265,0.8405986,148.93,148.9,20.0]
[1719917254064,13.0105986,148.93,148.9,20.0]
[1719917254364,13.0105986,148.93,148.89,20.0]
[1719917254561,0.8405986,148.93,148.86,55.5079]
[1719917254754,12.17,148.91,148.86,67.6779]
[1719917254952,12.17,148.91,148.87,12.17]
[1719917255355,12.17,148.92,148.87,12.17]
[1719917255665,0.8405986,148.93,148.87,12.17]
[1719917255865,0.8405986,148.93,148.87,52.58]
[1719917256067,12.17,148.92,148.88,20.0]
[1719917257665,12.17,148.91,148.88,20.0]
[1719917257868,12.17,148.91,148.87,20.0]
[1719917258074,12.17,148.9,148.87,20.0]
[1719917258268,12.17,148.9,148.84,20.0]
[1719917258450,12.17,148.9,148.85,12.17]
[1719917258651,12.17,148.9,148.86,20.0]
[1719917259343,12.17,148.91,148.86,32.17]